fUSD/lending_fUSD_20260112
["ID","MTS","AMOUNT","RATE_DAILY","PERIOD"]
[401470267,1768251032817,-500.0,0.00013182,2]
[401470268,1768251032827,-500.0,0.00013182,2]
[401470271,1768251032836,-500.0,0.00013182,2]
[401470273,1768251032845,-500.0,0.00013182,2]
[401470275,1768251032854,-500.0,0.00013182,2]
[401470277,1768251032863,-500.0,0.00013182,2]
[401470278,1768251032873,-500.0,0.00013182,2]
[401470281,1768251032882,-500.0,0.00013182,2]
[401470283,1768251032891,-500.0,0.00013182,2]
[401470285,1768251032900,-500.0,0.00013182,2]
[401470287,1768251032909,-500.0,0.00013182,2]
[401470289,1768251032918,-500.0,0.00013182,2]
[401470291,1768251032928,-500.0,0.00013182,2]
[401470293,1768251032937,-500.0,0.00013182,2]
[401470295,1768251032946,-500.0,0.00013182,2]
[401470297,1768251032955,-500.0,0.00013182,2]
[401470299,1768251032965,-500.0,0.00013182,2]
[401470301,1768251032976,-500.0,0.00013182,2]
[401470303,1768251032985,-500.0,0.00013182,2]
[401470305,1768251032994,-500.0,0.00013182,2]
[401470307,1768251033003,-500.0,0.00013182,2]
[401470309,1768251033012,-500.0,0.00013182,2]
[401470311,1768251033022,-258.78857466,0.00013182,2]
[401470313,1768251033032,-500.0,0.00013182,2]
[401470315,1768251033041,-500.0,0.00013182,2]
[401470317,1768251033052,-500.0,0.00013182,2]
[401470319,1768251033061,-11475.01,0.00013183,2]
[401470321,1768251033070,-250.0,0.00013211,2]
[401470323,1768251033080,-500.0,0.00013211,2]
[401470325,1768251033089,-200.0,0.00013237,2]
[401470327,1768251033098,-382.41,0.00013237,2]
[401470329,1768251033108,-151.0,0.0001325,2]
[401470331,1768251033117,-150.0,0.0001325,2]
[401470332,1768251033126,-10096.05,0.00013253,2]
[401470333,1768251033135,-166.66,0.00013346,2]
[401470334,1768251033145,-1166.2,0.00013406,2]
[401470335,1768251033155,-1240.05,0.00013427,2]
[401470336,1768251033165,-1011.39,0.00013456,2]
[401470337,1768251033174,-150.0,0.00013458,2]
[401470338,1768251033184,-151.0,0.00013612,2]
[401470339,1768251033194,-193.83116704,0.00013614,2]
[401470340,1768251033204,-163.36655648,0.00013614,2]
[401470341,1768251033213,-185.48499329,0.00013614,2]
[401470342,1768251033222,-274.28731814,0.00013614,2]
[401470343,1768251033231,-177.21653682,0.00013614,2]
[401470344,1768251033241,-150.0,0.00013614,2]
[401470345,1768251033250,-166.66,0.00013615,2]
[401470346,1768251033259,-9999.99,0.00013615,2]
[401470347,1768251033269,-150.99,0.00013615,2]
[401470348,1768251033278,-150.99,0.00013615,2]
[401470349,1768251033287,-2769.58202692,0.00013615,2]
[401470350,1768251033299,-300.0,0.00013615,2]
[401470351,1768251033319,-6916.88431535,0.00013615,2]
[401470352,1768251033330,-646.95932909,0.00013615,2]
[401470353,1768251033341,-2602.86816267,0.00013615,2]
[401470354,1768251033353,-1377.93241419,0.00013615,2]
[401470355,1768251033364,-1060.92531021,0.00013615,2]
[401470356,1768251033375,-665.86849656,0.00013615,2]
[401470357,1768251033389,-2519.10982703,0.00013615,2]
[401470358,1768251033401,-487.0242411,0.00013615,2]
[401470359,1768251033412,-2043.37587688,0.00013615,2]
[401470360,1768251033422,-1179.17,0.00013615,2]
[401470361,1768251033432,-5737.45412312,0.00013615,2]
[401470362,1768251033447,-4262.53587688,0.00013615,2]
[401470363,1768251033456,-632.45,0.00013699,2]
[401470364,1768251033466,-15.0823037,0.0001373,2]
[401470365,1768251033477,-996.3076963,0.0001373,2]
[401470366,1768251033487,-213.12201918,0.0001379,2]
[401470367,1768251033496,-166.66,0.00013885,2]
[401470368,1768251033505,-1112.70516351,0.00013885,2]
[401470369,1768251033517,-305.85181942,0.00013885,2]
[401470370,1768251033531,-4448.81383102,0.00013885,2]
[401470371,1768251033542,-999.0,0.00013885,2]
[401470372,1768251033553,-449.6702639,0.00013885,2]
[401470373,1768251033595,-1872.07752206,0.00013885,2]
[401470375,1768251038308,-558.38385669,0.00013885,2]
[401470376,1768251038320,-2582.0875434,0.00013885,2]
[401470377,1768251038329,-6159.61,0.00013885,2]
[401470378,1768251038339,-2532.38,0.00013885,2]
[401470379,1768251038348,-193.27,0.00013938,2]
[401470380,1768251038359,-1356.4829,0.00013952,2]
[401470381,1768251038368,-1011.39,0.00014004,2]
[401470382,1768251038378,-195.0,0.00014022,2]
[401470383,1768251038387,-2500.0,0.00014022,2]
[401470384,1768251038396,-250.0,0.00014022,2]
[401470385,1768251038406,-391.2335,0.00014022,2]
[401470386,1768251038415,-151.0,0.00014051,2]
[401470387,1768251038425,-2324.54681208,0.00014054,2]
[401470388,1768251038434,-2500.0,0.00014054,2]
[401470389,1768251038444,-567.46461532,0.00014054,2]
[401470390,1768251038454,-566.94049687,0.00014054,2]
[401470391,1768251038463,-6215.54533549,0.00014055,2]
[401470392,1768251038473,-20361.70048935,0.00014055,2]
[401470393,1768251038482,-437.045626,0.00014055,2]
[401470394,1768251038492,-437.045626,0.00014055,2]
[401470395,1768251038502,-437.045626,0.00014055,2]
[401470396,1768251038511,-437.045626,0.00014055,2]
[401470397,1768251038520,-172.755136,0.00014055,2]
[401470398,1768251038529,-172.755136,0.00014055,2]
[401470399,1768251038539,-172.755136,0.00014055,2]
[401470400,1768251038548,-172.755136,0.00014055,2]
[401470401,1768251038558,-151.0,0.00014055,2]
[401470402,1768251038567,-151.0,0.00014055,2]
[401470403,1768251038577,-195.0,0.00014087,2]
[401470404,1768251038587,-600.0,0.00014087,2]
[401470405,1768251038596,-250.0,0.00014087,2]
[401470407,1768251038606,-300.0,0.00014087,2]
[401470409,1768251038616,-195.0,0.00014087,2]
[401470411,1768251038625,-300.0,0.00014087,2]
[401470413,1768251038634,-195.0,0.00014087,2]
[401470415,1768251038644,-458.0,0.0001411,2]
[401470417,1768251038654,-2466.331,0.0001411,2]
[401470419,1768251038663,-164.638,0.0001411,2]
[401470421,1768251038672,-566.94049687,0.00014145,2]
[401470423,1768251038681,-151.0,0.00014145,2]
[401470425,1768251038690,-500.0,0.00014145,2]
[401470427,1768251038700,-151.0,0.00014145,2]
[401470429,1768251038709,-151.0,0.00014145,2]
[401470431,1768251038718,-151.0,0.00014145,2]
[401470434,1768251038731,-151.0,0.00014145,2]
[401470436,1768251038740,-151.0,0.00014145,2]
[401470438,1768251038749,-151.0,0.00014145,2]
[401470440,1768251038758,-151.0,0.00014145,2]
[401470442,1768251038767,-200.0,0.00014145,2]
[401470444,1768251038777,-151.0,0.00014145,2]
[401470446,1768251038786,-157.35456451,0.00014145,2]
[401470448,1768251038795,-151.0,0.00014145,2]
[401470450,1768251038804,-151.0,0.00014145,2]
[401470452,1768251038814,-500.0,0.00014145,2]
[401470454,1768251038823,-151.0,0.00014145,2]
[401470456,1768251038833,-237.03265591,0.00014145,2]
[401470458,1768251038842,-500.0,0.00014145,2]
[401470459,1768251038851,-500.0,0.00014145,2]
[401470462,1768251038861,-200.0,0.00014145,2]
[401470463,1768251038870,-500.0,0.00014145,2]
[401470465,1768251038881,-500.0,0.00014145,2]
[401470468,1768251038890,-500.0,0.00014145,2]
[401470469,1768251038900,-500.0,0.00014145,2]
[401470472,1768251038909,-500.0,0.00014145,2]
[401470474,1768251038919,-500.0,0.00014145,2]
[401470475,1768251038928,-505.93123413,0.00014145,2]
[401470477,1768251038938,-200.0,0.00014145,2]
[401470479,1768251038948,-1006.8454,0.00014153,2]
[401470482,1768251038958,-500.0,0.00014153,2]
[401470484,1768251038969,-151.0,0.00014153,2]
[401470486,1768251038981,-941175.6769249,0.00014154,2]
[401470488,1768251038994,-58824.3230751,0.00014154,2]
[401470490,1768251039006,-151.0,0.00014154,2]
[401470492,1768251039018,-437.045626,0.00014154,2]
[401470494,1768251039028,-437.045626,0.00014154,2]
[401470496,1768251039038,-437.045626,0.00014154,2]
[401470498,1768251039050,-437.045626,0.00014154,2]
[401470500,1768251039059,-172.755136,0.00014154,2]
[401470502,1768251039069,-172.755136,0.00014154,2]
[401470504,1768251039079,-172.755136,0.00014154,2]
[401470506,1768251039089,-172.755136,0.00014154,2]
[401470508,1768251039099,-151.0,0.00014154,2]
[401470510,1768251039109,-151.0,0.00014154,2]
[401470512,1768251039119,-166.66,0.00014155,2]
[401470514,1768251039129,-614.55039771,0.00014213,2]
[401470516,1768251039140,-4475.9744,0.00014219,2]
[401470518,1768251039149,-940.79554436,0.00014221,2]
[401470520,1768251039159,-437.045626,0.00014231,2]
[401470522,1768251039169,-437.045626,0.00014231,2]
[401470524,1768251039178,-437.045626,0.00014231,2]
[401470526,1768251039187,-437.045626,0.00014231,2]
[401470528,1768251039197,-172.755136,0.00014231,2]
[401470530,1768251039207,-172.755136,0.00014231,2]
[401470532,1768251039216,-172.755136,0.00014231,2]
[401470535,1768251039226,-172.755136,0.00014231,2]
[401470536,1768251039235,-151.0,0.00014231,2]
[401470538,1768251039244,-2148.9329,0.00014231,2]
[401470540,1768251039254,-40117.8163,0.00014231,2]
[401470542,1768251039264,-6239.7665,0.00014236,2]
[401470544,1768251039274,-1000.0,0.00014236,2]
[401470546,1768251039283,-566.94049687,0.00014236,2]
[401470548,1768251039292,-276.22792842,0.0001425,2]
[401470550,1768251039302,-161.35165335,0.0001425,2]
[401470552,1768251039311,-150.0,0.0001425,2]
[401470554,1768251039320,-218.76542233,0.0001425,2]
[401470556,1768251039330,-150.0,0.0001425,2]
[401470558,1768251039339,-150.0,0.0001425,2]
[401470560,1768251039348,-150.0,0.0001425,2]
[401470562,1768251039357,-160.52179082,0.0001425,2]
[401470564,1768251039366,-150.0,0.0001425,2]
[401470566,1768251039375,-150.0,0.0001425,2]
[401470568,1768251039384,-150.0,0.0001425,2]
[401470570,1768251039393,-150.0,0.0001425,2]
[401470572,1768251039402,-500.0,0.0001425,2]
[401470574,1768251039411,-150.0,0.0001425,2]
[401470576,1768251039420,-150.0,0.0001425,2]
[401470578,1768251039429,-150.0,0.0001425,2]
[401470580,1768251039439,-150.0,0.0001425,2]
[401470582,1768251039448,-150.0,0.0001425,2]
[401470584,1768251039458,-150.0,0.0001425,2]
[401470586,1768251039467,-150.0,0.0001425,2]
[401470588,1768251039477,-500.0,0.0001425,2]
[401470590,1768251039489,-150.0,0.0001425,2]
[401470592,1768251039499,-1011.39,0.00014278,2]
[401470595,1768251039508,-150.0,0.00014305,2]
[401470597,1768251039518,-246.98457547,0.00014305,2]
[401470598,1768251039527,-150.0,0.00014305,2]
[401470600,1768251039536,-150.0,0.00014305,2]
[401470602,1768251039546,-211.09943952,0.00014305,2]
[401470604,1768251039554,-150.0,0.00014305,2]
[401470606,1768251039563,-150.0,0.00014305,2]
[401470609,1768251039574,-500.0,0.00014305,2]
[401470611,1768251039583,-150.0,0.00014305,2]
[401470612,1768251039592,-150.0,0.00014305,2]
[401470614,1768251039601,-150.0,0.00014305,2]
[401470616,1768251039610,-150.0,0.00014305,2]
[401470618,1768251039620,-500.0,0.00014305,2]
[401470620,1768251039629,-150.0,0.00014305,2]
[401470622,1768251039638,-151.0,0.00014331,2]
[401470624,1768251039647,-151.0,0.00014331,2]
[401470626,1768251039657,-151.0,0.00014331,2]
[401470629,1768251039667,-151.0,0.00014331,2]
[401470631,1768251039677,-500.0,0.00014335,2]
[401470633,1768251039688,-5384.7712308,0.00014336,2]
[401470635,1768251039698,-230236.5968697,0.00014336,2]
[401470637,1768251039708,-1172.6056583,0.00014336,2]
[401470639,1768251039718,-178.6163474,0.00014336,2]
[401470641,1768251039727,-151.0,0.00014336,2]
[401470643,1768251039736,-151.0,0.00014336,2]
[401470645,1768251039745,-151.0,0.00014336,2]
[401470647,1768251039754,-57023.5927362,0.00014336,2]
[401470649,1768251039764,-151.0,0.00014336,2]
[401470651,1768251039774,-151.0,0.00014336,2]
[401470653,1768251039783,-151.0,0.00014336,2]
[401470655,1768251039793,-151.0,0.00014336,2]
[401470657,1768251039802,-151.0,0.00014336,2]
[401470659,1768251039811,-151.0,0.00014336,2]
[401470661,1768251039821,-151.0,0.00014336,2]
[401470663,1768251039830,-151.0,0.00014336,2]
[401470665,1768251039839,-1268.939339,0.00014336,2]
[401470667,1768251039849,-151.0,0.00014336,2]
[401470669,1768251039858,-153.471344,0.00014336,2]
[401470671,1768251039867,-13886.480428,0.00014336,2]
[401470673,1768251039876,-195.6863039,0.00014336,2]
[401470675,1768251039885,-25864.3419484,0.00014336,2]
[401470677,1768251039894,-437.045626,0.00014336,2]
[401470679,1768251039903,-437.045626,0.00014336,2]
[401470681,1768251039912,-437.045626,0.00014336,2]
[401470683,1768251039922,-437.045626,0.00014336,2]
[401470685,1768251039931,-437.045626,0.00014336,2]
[401470687,1768251039941,-437.045626,0.00014336,2]
[401470689,1768251039951,-437.045626,0.00014336,2]
[401470691,1768251039960,-437.045636,0.00014336,2]
[401470693,1768251039971,-172.755136,0.00014336,2]
[401470695,1768251039983,-172.755136,0.00014336,2]
[401470696,1768251039992,-172.755136,0.00014336,2]
[401470698,1768251040002,-172.755136,0.00014336,2]
[401470701,1768251040012,-172.755136,0.00014336,2]
[401470703,1768251040024,-172.755136,0.00014336,2]
[401470705,1768251040034,-172.755136,0.00014336,2]
[401470707,1768251040045,-172.755128,0.00014336,2]
[401470709,1768251040054,-151.0,0.00014336,2]
[401470711,1768251040063,-151.0,0.00014336,2]
[401470713,1768251040073,-500.0,0.00014339,2]
[401470715,1768251040083,-500.0,0.00014339,2]
[401470717,1768251040093,-500.0,0.00014339,2]
[401470719,1768251040102,-500.0,0.00014339,2]
[401470721,1768251040112,-1272.40032527,0.0001434,2]
[401470723,1768251040121,-200.0,0.0001434,2]
[401470725,1768251040131,-151.0,0.0001434,2]
[401470728,1768251040140,-151.0,0.0001434,2]
[401470731,1768251040149,-200.0,0.0001434,2]
[401470733,1768251040159,-151.0,0.0001434,2]
[401470735,1768251040168,-151.0,0.0001434,2]
[401470737,1768251040177,-151.0,0.0001434,2]
[401470739,1768251040187,-831.908,0.0001434,2]
[401470742,1768251040198,-569.96,0.0001434,2]
[401470745,1768251040207,-1000.0,0.0001434,2]
[401470748,1768251040217,-1000.0,0.0001434,2]
[401470751,1768251040226,-1000.0,0.0001434,2]
[401470754,1768251040235,-151.99676898,0.00014341,2]
[401470756,1768251040245,-150.0,0.0001436,2]
[401470758,1768251040254,-150.0,0.0001436,2]
[401470760,1768251040263,-200.0,0.0001436,2]
[401470762,1768251040272,-200.0,0.0001436,2]
[401470764,1768251040281,-150.0,0.0001436,2]
[401470766,1768251040291,-150.0,0.0001436,2]
[401470768,1768251040300,-150.0,0.0001436,2]
[401470770,1768251040309,-500.0,0.0001436,2]
[401470772,1768251040318,-200.0,0.0001436,2]
[401470774,1768251040328,-255.0,0.00014363,2]
[401470776,1768251040337,-632.45,0.00014384,2]
[401470778,1768251040347,-25024.4490323,0.000144,2]
[401470780,1768251040356,-151.0,0.000144,2]
[401470782,1768251040365,-151.0,0.000144,2]
[401470784,1768251040374,-155.86299,0.000144,2]
[401470786,1768251040383,-150.0,0.00014414,2]
[401470788,1768251040393,-200.0,0.00014414,2]
[401470790,1768251040402,-150.0,0.00014414,2]
[401470792,1768251040411,-250.0,0.00014414,2]
[401470794,1768251040421,-200.0,0.00014414,2]
[401470796,1768251040430,-500.0,0.00014414,2]
[401470798,1768251040441,-200.0,0.00014425,2]
[401470800,1768251040450,-350.0,0.00014431,2]
[401470802,1768251040460,-1000.0,0.00014431,2]
[401470804,1768251040470,-533.88981491,0.00014431,2]
[401470806,1768251040479,-1000.0,0.00014431,2]
[401470808,1768251040489,-250.0,0.00014431,2]
[401470810,1768251040499,-1000.0,0.00014431,2]
[401470812,1768251040508,-250.0,0.00014431,2]
[401470814,1768251040517,-1000.0,0.00014431,2]
[401470816,1768251040526,-1000.0,0.00014431,2]
[401470818,1768251040535,-1000.0,0.00014431,2]
[401470820,1768251040544,-951.86518169,0.00014431,2]
[401470822,1768251040554,-1000.0,0.00014431,2]
[401470824,1768251040563,-1000.0,0.00014431,2]
[401470826,1768251040572,-500.0,0.00014431,2]
[401470828,1768251040581,-1000.0,0.00014431,2]
[401470830,1768251040589,-500.0,0.00014431,2]
[401470832,1768251040598,-1000.0,0.00014431,2]
[401470834,1768251040608,-500.0,0.00014431,2]
[401470836,1768251040618,-1000.0,0.00014431,2]
[401470838,1768251040627,-500.0,0.00014431,2]
[401470840,1768251040636,-500.0,0.00014431,2]
[401470842,1768251040645,-1000.0,0.00014431,2]
[401470844,1768251040654,-500.0,0.00014431,2]
[401470846,1768251040663,-500.0,0.00014431,2]
[401470848,1768251040672,-1000.0,0.00014431,2]
[401470850,1768251040681,-500.0,0.00014431,2]
[401470852,1768251040691,-500.0,0.00014431,2]
[401470854,1768251040700,-9000.0,0.00014431,2]
[401470856,1768251040710,-500.0,0.00014431,2]
[401470858,1768251040720,-500.0,0.00014431,2]
[401470860,1768251040729,-9000.0,0.00014431,2]
[401470862,1768251040738,-500.0,0.00014431,2]
[401470864,1768251040747,-500.0,0.00014431,2]
[401470866,1768251040757,-500.0,0.00014431,2]
[401470868,1768251040766,-9000.0,0.00014431,2]
[401470870,1768251040775,-9000.0,0.00014431,2]
[401470872,1768251040784,-500.0,0.00014431,2]
[401470874,1768251040793,-500.0,0.00014431,2]
[401470876,1768251040802,-9000.0,0.00014431,2]
[401470878,1768251040811,-500.0,0.00014431,2]
[401470880,1768251040820,-500.0,0.00014431,2]
[401470882,1768251040829,-9000.0,0.00014431,2]
[401470883,1768251040839,-500.0,0.00014431,2]
[401470885,1768251040848,-500.0,0.00014431,2]
[401470887,1768251040857,-9000.0,0.00014431,2]
[401470890,1768251040867,-500.0,0.00014431,2]
[401470891,1768251040876,-9000.0,0.00014431,2]
[401470894,1768251040888,-500.0,0.00014431,2]
[401470896,1768251040899,-500.0,0.00014431,2]
[401470897,1768251040910,-500.0,0.00014431,2]
[401470899,1768251040921,-500.0,0.00014431,2]
[401470901,1768251040931,-500.0,0.00014431,2]
[401470903,1768251040942,-194.72792766,0.00014431,2]
[401470905,1768251040952,-724.98153853,0.00014431,2]
[401470907,1768251040964,-250.0,0.00014431,2]
[401470910,1768251040977,-250.0,0.00014431,2]
[401470911,1768251040987,-250.0,0.00014431,2]
[401470913,1768251040996,-250.0,0.00014431,2]
[401470915,1768251041007,-250.0,0.00014431,2]
[401470917,1768251041017,-250.0,0.00014431,2]
[401470919,1768251041026,-250.0,0.00014431,2]
[401470922,1768251041037,-998.0,0.00014431,2]
[401470923,1768251041048,-250.0,0.00014431,2]
[401470925,1768251041057,-250.0,0.00014431,2]
[401470926,1768251041065,-250.0,0.00014431,2]
[401470927,1768251041074,-250.0,0.00014431,2]
[401470928,1768251041083,-214.19143741,0.00014431,2]
[401470929,1768251041092,-250.0,0.00014431,2]
[401470930,1768251041101,-322.6107,0.00014431,2]
[401470931,1768251041109,-250.0,0.00014431,2]
[401470932,1768251041118,-250.0,0.00014431,2]
[401470933,1768251041127,-233.1597953,0.00014431,2]
[401470934,1768251041135,-250.0,0.00014431,2]
[401470935,1768251041145,-285.08125974,0.00014431,2]
[401470936,1768251041154,-706.57931957,0.00014431,2]
[401470938,1768251041163,-620.0,0.00014431,2]
[401470940,1768251041173,-500.0,0.00014431,2]
[401470942,1768251041182,-500.0,0.00014431,2]
[401470945,1768251041193,-500.0,0.00014431,2]
[401470947,1768251041202,-500.0,0.00014431,2]
[401470948,1768251041212,-500.0,0.00014431,2]
[401470950,1768251041221,-500.0,0.00014431,2]
[401470952,1768251041230,-500.0,0.00014431,2]
[401470954,1768251041239,-500.0,0.00014431,2]
[401470956,1768251041248,-500.0,0.00014431,2]
[401470959,1768251041258,-500.0,0.00014431,2]
[401470961,1768251041268,-500.0,0.00014431,2]
[401470962,1768251041279,-500.0,0.00014431,2]
[401470964,1768251041289,-500.0,0.00014431,2]
[401470966,1768251041299,-263.045368,0.00014453,2]
[401470969,1768251041311,-170.861328,0.00014453,2]
[401470970,1768251041320,-420.0,0.00014453,2]
[401470972,1768251041330,-411.0,0.00014454,2]
[401470975,1768251041341,-150.0,0.00014469,2]
[401470977,1768251041351,-212.08693291,0.00014469,2]
[401470978,1768251041362,-500.0,0.00014469,2]
[401470981,1768251041373,-6215.54533547,0.00014482,2]
[401470982,1768251041383,-20361.70048933,0.00014482,2]
[401470984,1768251041392,-200.0,0.00014483,2]
[401470986,1768251041403,-200.0,0.00014483,2]
[401470989,1768251041412,-586.0,0.00014485,2]
[401470991,1768251041421,-9118.40144269,0.00014486,2]
[401470992,1768251041431,-1680.0,0.00014499,2]
[401470994,1768251041443,-250.0,0.00014524,2]
[401470997,1768251041452,-500.0,0.00014524,2]
[401470999,1768251041462,-586.0,0.00014535,2]
[401471001,1768251041471,-1066.30640652,0.0001454,5]
[401471003,1768251041480,-296.1158387,0.00014541,2]
[401471005,1768251041489,-1011.39,0.00014552,2]
[401471007,1768251041498,-500.0,0.00014579,2]
[401471009,1768251041507,-1000.0,0.000146,2]
[401471011,1768251041517,-567.46461532,0.00014603,2]
[401471013,1768251041526,-200.0,0.00014628,2]
[401471015,1768251041535,-200.0,0.00014628,2]
[401471017,1768251041545,-500.0,0.00014634,2]
[401471019,1768251041554,-203.81024907,0.00014655,2]
[401471021,1768251041564,-500.0,0.00014688,2]
[401471023,1768251041573,-1411.86606183,0.00014693,2]
[401471025,1768251041582,-1000.0,0.000147,2]
[401471027,1768251041591,-500.0,0.00014743,2]
[401471029,1768251041600,-200.0,0.00014775,2]
[401471031,1768251041609,-200.0,0.00014775,2]
[401471033,1768251041620,-4727.09973,0.0001478,2]
[401471035,1768251041629,-500.0,0.00014798,2]
[401471037,1768251041638,-1000.0,0.000148,2]
[401471039,1768251041647,-1011.39,0.00014826,2]
[401471041,1768251041656,-4727.09973,0.0001483,2]
[401471043,1768251041665,-500.0,0.00014853,2]
[401471045,1768251041674,-500.0,0.00014861,2]
[401471047,1768251041683,-4727.09973,0.0001488,2]
[401471049,1768251041692,-5888.0,0.00014887,2]
[401471051,1768251041701,-382.41,0.00014892,2]
[401471053,1768251041711,-1000.0,0.00014898,2]
[401471054,1768251041721,-1000.0,0.00014898,2]
[401471056,1768251041730,-1000.0,0.00014898,2]
[401471058,1768251041739,-1000.0,0.00014898,2]
[401471060,1768251041749,-1000.0,0.00014898,2]
[401471062,1768251041759,-1000.0,0.00014898,2]
[401471064,1768251041768,-452.13003118,0.00014898,2]
[401471066,1768251041777,-4727.09973,0.00014898,2]
[401471068,1768251041787,-4727.09973,0.00014898,2]
[401471070,1768251041797,-600.0,0.000149,5]
[401471073,1768251041806,-1000.0,0.000149,2]
[401471075,1768251041816,-2296.69333316,0.00014902,2]
[401471077,1768251041826,-3243.61644541,0.00014902,2]
[401471078,1768251041838,-4197.1644,0.00014902,2]
[401471081,1768251041848,-500.0,0.00014908,2]
[401471083,1768251041857,-6215.54533547,0.00014909,2]
[401471084,1768251041867,-20361.70048933,0.00014909,2]
[401471086,1768251041877,-7273.0,0.00014922,2]
[401471088,1768251041887,-200.0,0.00014922,2]
[401471090,1768251041897,-200.0,0.00014922,2]
[401471093,1768251041907,-4727.09973,0.0001493,2]
[401471095,1768251041917,-1282.0,0.00014931,2]
[401471097,1768251041927,-170.59,0.00014958,2]
[401471099,1768251041937,-500.0,0.00014962,2]
[401471101,1768251041948,-553.64373807,0.00014979,2]
[401471103,1768251041957,-4727.09974,0.0001498,2]
[401471105,1768251041967,-1000.0,0.00015,2]
[401471107,1768251041979,-500.0,0.00015017,2]
[401471109,1768251041989,-555.62881705,0.00015028,2]
[401471111,1768251041998,-4727.09973,0.0001503,2]
[401471112,1768251042008,-327.15,0.00015068,2]
[401471115,1768251042019,-158.731118,0.00015068,2]
[401471116,1768251042028,-158.731118,0.00015068,2]
[401471119,1768251042038,-158.731118,0.00015068,2]
[401471121,1768251042051,-158.731118,0.00015068,2]
[401471123,1768251042061,-158.731118,0.00015068,2]
[401471125,1768251042070,-158.731118,0.00015068,2]
[401471127,1768251042080,-158.731118,0.00015068,2]
[401471129,1768251042090,-158.731118,0.00015068,2]
[401471131,1768251042099,-158.731118,0.00015068,2]
[401471133,1768251042108,-158.731118,0.00015068,2]
[401471135,1768251042117,-158.731118,0.00015068,2]
[401471137,1768251042126,-158.731118,0.00015068,2]
[401471139,1768251042136,-158.731118,0.00015068,2]
[401471141,1768251042145,-158.731118,0.00015068,2]
[401471171,1768251042408,-158.731118,0.00015068,2]
[401471173,1768251042419,-158.731118,0.00015068,2]
[401471175,1768251042429,-158.731118,0.00015068,2]
[401471177,1768251042438,-158.731118,0.00015068,2]
[401471179,1768251042447,-158.731118,0.00015068,2]
[401471181,1768251042456,-158.731125,0.00015068,2]
[401471183,1768251042466,-632.45,0.00015068,2]
[401471185,1768251042475,-616.0,0.00015072,2]
[401471187,1768251042485,-4727.09973,0.0001508,2]
[401471189,1768251042494,-1011.42279907,0.000151,2]
[401471191,1768251042504,-1000.0,0.000151,2]
[401471193,1768251042514,-4727.09973,0.0001513,2]
[401471195,1768251042523,-567.46461532,0.00015153,2]
[401471197,1768251042532,-1000.0,0.00015169,2]
[401471199,1768251042542,-1282.0,0.0001517,2]
[401471201,1768251042551,-1282.0,0.00015208,2]
[401471203,1768251042561,-1282.0,0.00015246,2]
[401471205,1768251042570,-1282.0,0.00015268,2]
[401471207,1768251042579,-1282.0,0.00015279,2]
[401471209,1768251042589,-1517.64,0.000153,2]
[401471211,1768251042598,-1176.0,0.00015314,2]
[401471213,1768251042607,-6215.54533547,0.00015337,2]
[401471215,1768251042616,-20361.70048933,0.00015337,2]
[401471217,1768251042626,-1219.52379571,0.00015373,2]
[401471219,1768251042635,-1000.0,0.00015381,2]